fUST/lending_fUST_20240220
["ID","MTS","AMOUNT","RATE_DAILY","PERIOD"]
[314467607,1708369847603,-500.0,0.00027397,2]
[314467609,1708369847612,-500.0,0.00027397,2]
[314467611,1708369847622,-500.0,0.00027397,2]
[314467613,1708369847631,-500.0,0.00027397,2]
[314467615,1708369847639,-500.0,0.00027397,2]
[314467617,1708369847648,-500.0,0.00027397,2]
[314467619,1708369847657,-500.0,0.00027397,2]
[314467621,1708369847666,-500.0,0.00027397,2]
[314467623,1708369847674,-500.0,0.00027397,2]
[314467625,1708369847683,-4834.44,0.00027397,2]
[314467627,1708369847694,-500.0,0.00027397,2]
[314467629,1708369847703,-500.0,0.00027397,2]
[314467631,1708369847711,-500.0,0.00027397,2]
[314467633,1708369847720,-575.99,0.00027397,2]
[314467635,1708369847731,-500.0,0.00027397,2]
[314467637,1708369847740,-616.65,0.00027397,2]
[314467639,1708369847749,-2092.72,0.00027397,2]
[314467641,1708369847758,-1000.0,0.00027397,2]
[314467643,1708369847767,-500.0,0.00027397,2]
[314467645,1708369847777,-3615.9,0.00027397,2]
[314467647,1708369847786,-224.70098915,0.00027397,2]
[314467649,1708369847795,-500.0,0.00027397,2]
[314467651,1708369847804,-500.0,0.00027397,2]
[314467653,1708369847813,-500.0,0.00027397,2]
[314467655,1708369847822,-500.0,0.00027397,2]
[314467657,1708369847831,-500.0,0.00027397,2]
[314467659,1708369847840,-500.0,0.00027397,2]
[314467662,1708369847850,-500.0,0.00027397,2]
[314467664,1708369847860,-500.0,0.00027397,2]
[314467666,1708369847868,-500.0,0.00027397,2]
[314467668,1708369847878,-1009.31,0.00027397,2]
[314467670,1708369847886,-322.60911897,0.00027397,2]
[314467671,1708369847897,-400.0,0.00027397,2]
[314467673,1708369847906,-3167.92,0.00027397,2]
[314467675,1708369847915,-500.0,0.00027397,2]
[314467677,1708369847923,-450.02809294,0.00027397,2]
[314467679,1708369847932,-500.0,0.00027397,2]
[314467681,1708369847941,-500.0,0.00027397,2]
[314467683,1708369847950,-1573.88,0.00027397,2]
[314467685,1708369847959,-721.49,0.00027397,2]
[314467687,1708369847968,-603.51565486,0.00027397,2]
[314467689,1708369847977,-500.0,0.00027397,2]
[314467691,1708369847986,-500.0,0.00027397,2]
[314467694,1708369847998,-2320.89,0.00027397,2]
[314467696,1708369848007,-500.0,0.00027397,2]
[314467698,1708369848017,-500.0,0.00027397,2]
[314467700,1708369848026,-500.0,0.00027397,2]
[314467702,1708369848035,-2820.64,0.00027397,2]
[314467704,1708369848047,-500.0,0.00027397,2]
[314467706,1708369848056,-500.0,0.00027397,2]
[314467708,1708369848065,-390.0,0.00027397,2]
[314467710,1708369848074,-500.0,0.00027397,2]
[314467712,1708369848083,-500.0,0.00027397,2]
[314467714,1708369848092,-500.0,0.00027397,2]
[314467716,1708369848101,-21952.34,0.00027397,2]
[314467718,1708369848110,-1132.78,0.00027397,2]
[314467720,1708369848119,-1000.0,0.00027397,2]
[314467722,1708369848128,-500.0,0.00027397,2]
[314467724,1708369848137,-500.0,0.00027397,2]
[314467726,1708369848146,-500.0,0.00027397,2]
[314467728,1708369848155,-500.0,0.00027397,2]
[314467730,1708369848164,-500.0,0.00027397,2]
[314467732,1708369848173,-19725.55,0.00027397,2]
[314467734,1708369848182,-10210.97,0.00027397,2]
[314467736,1708369848191,-4342.53,0.00027397,2]
[314467738,1708369848202,-500.0,0.00027397,2]
[314467740,1708369848210,-500.0,0.00027397,2]
[314467742,1708369848219,-500.0,0.00027397,2]
[314467744,1708369848228,-548.81246832,0.00027397,2]
[314467746,1708369848240,-13932.42,0.00027397,2]
[314467748,1708369848248,-500.0,0.00027397,2]
[314467750,1708369848258,-14188.01,0.00027397,2]
[314467752,1708369848267,-500.0,0.00027397,2]
[314467754,1708369848276,-500.0,0.00027397,2]
[314467756,1708369848286,-204.4664935,0.00027397,2]
[314467758,1708369848295,-500.0,0.00027397,2]
[314467759,1708369848304,-1193.94,0.00027397,2]
[314467762,1708369848313,-27851.97,0.00027397,2]
[314467763,1708369848324,-500.0,0.00027397,2]
[314467765,1708369848334,-500.0,0.00027397,2]
[314467767,1708369848343,-500.0,0.00027397,2]
[314467770,1708369848353,-500.0,0.00027397,2]
[314467771,1708369848363,-3894.85,0.00027397,2]
[314467773,1708369848372,-500.0,0.00027397,2]
[314467775,1708369848381,-2998.23,0.00027397,2]
[314467777,1708369848391,-500.0,0.00027397,2]
[314467779,1708369848400,-500.0,0.00027397,2]
[314467781,1708369848409,-500.0,0.00027397,2]
[314467783,1708369848418,-3124.39,0.00027397,2]
[314467785,1708369848428,-500.0,0.00027397,2]
[314467787,1708369848437,-4091.4,0.00027397,2]
[314467789,1708369848445,-500.0,0.00027397,2]
[314467791,1708369848454,-356.40121627,0.00027397,2]
[314467793,1708369848463,-500.0,0.00027397,2]
[314467795,1708369848473,-500.0,0.00027397,2]
[314467797,1708369848482,-2230.98,0.00027397,2]
[314467799,1708369848492,-500.0,0.00027397,2]
[314467800,1708369848501,-500.0,0.00027397,2]
[314467801,1708369848510,-500.0,0.00027397,2]
[314467802,1708369848519,-33082.17,0.00027397,2]
[314467803,1708369848529,-500.0,0.00027397,2]
[314467804,1708369848538,-739.94,0.00027397,2]
[314467805,1708369848547,-500.0,0.00027397,2]
[314467806,1708369848556,-500.0,0.00027397,2]
[314467807,1708369848566,-500.0,0.00027397,2]
[314467808,1708369848575,-615.96313964,0.00027397,2]
[314467809,1708369848584,-284.9287367,0.00027397,2]
[314467810,1708369848593,-500.0,0.00027397,2]
[314467811,1708369848603,-717.56,0.00027397,2]
[314467812,1708369848611,-500.0,0.00027397,2]
[314467813,1708369848620,-3139.07,0.00027397,2]
[314467814,1708369848629,-599.43,0.00027397,2]
[314467816,1708369848638,-500.0,0.00027397,2]
[314467818,1708369848647,-500.0,0.00027397,2]
[314467820,1708369848655,-714.23,0.00027397,2]
[314467822,1708369848664,-500.0,0.00027397,2]
[314467823,1708369848672,-500.0,0.00027397,2]
[314467825,1708369848681,-500.0,0.00027397,2]
[314467826,1708369848690,-1017.25,0.00027397,2]
[314467827,1708369848699,-500.0,0.00027397,2]
[314467828,1708369848709,-500.0,0.00027397,2]
[314467829,1708369848718,-500.0,0.00027397,2]
[314467830,1708369848727,-500.0,0.00027397,2]
[314467831,1708369848736,-1564.55,0.00027397,2]
[314467832,1708369848747,-412.76126106,0.00027397,2]
[314467833,1708369848756,-500.0,0.00027397,2]
[314467834,1708369848765,-500.0,0.00027397,2]
[314467835,1708369848774,-500.0,0.00027397,2]
[314467836,1708369848783,-500.0,0.00027397,2]
[314467837,1708369848792,-500.0,0.00027397,2]
[314467838,1708369848801,-937.64,0.00027397,2]
[314467840,1708369848810,-500.0,0.00027397,2]
[314467841,1708369848819,-1224.59,0.00027397,2]
[314467843,1708369848828,-500.0,0.00027397,2]
[314467845,1708369848837,-6179.64,0.00027397,2]
[314467847,1708369848845,-570.0,0.00027397,2]
[314467848,1708369848856,-1093.55,0.00027397,2]
[314467850,1708369848865,-500.0,0.00027397,2]
[314467851,1708369848874,-500.0,0.00027397,2]
[314467852,1708369848883,-500.0,0.00027397,2]
[314467853,1708369848892,-500.0,0.00027397,2]
[314467854,1708369848900,-593.557447,0.00027397,2]
[314467855,1708369848910,-518.91,0.00027397,2]
[314467856,1708369848920,-1915.56,0.00027397,2]
[314467857,1708369848928,-500.0,0.00027397,2]
[314467858,1708369848937,-500.0,0.00027397,2]
[314467859,1708369848946,-500.0,0.00027397,2]
[314467860,1708369848955,-151.0,0.00027397,2]
[314467861,1708369848964,-2645.63,0.00027397,2]
[314467862,1708369848973,-6182.75,0.00027397,3]
[314467863,1708369848981,-11790.1,0.00027397,3]
[314467864,1708369848991,-500.0,0.00027534,2]
[314467865,1708369849001,-300.0,0.00027557,2]
[314467866,1708369849010,-2074.77564234,0.00027587,2]
[314467867,1708369849019,-500.0,0.00027671,2]
[314467868,1708369849028,-500.0,0.00027671,2]
[314467869,1708369849037,-500.0,0.00027671,2]
[314467870,1708369849046,-500.0,0.00027671,2]
[314467871,1708369849055,-500.0,0.00027671,2]
[314467872,1708369849065,-500.0,0.00027671,2]
[314467873,1708369849074,-500.0,0.00027671,2]
[314467874,1708369849083,-200.0,0.00027671,2]
[314467875,1708369849092,-500.0,0.00027671,2]
[314467876,1708369849102,-500.0,0.00027671,2]
[314467877,1708369849111,-500.0,0.00027671,2]
[314467878,1708369849121,-500.0,0.00027671,2]
[314467879,1708369849130,-500.0,0.00027671,2]
[314467880,1708369849139,-709.51,0.00027671,2]
[314467881,1708369849148,-853.57,0.00027671,2]
[314467882,1708369849158,-500.0,0.00027671,2]
[314467883,1708369849167,-1380.55,0.00027671,2]
[314467884,1708369849177,-500.0,0.00027671,2]
[314467885,1708369849186,-467.11278956,0.00027671,2]
[314467886,1708369849195,-500.0,0.00027671,2]
[314467887,1708369849204,-500.0,0.00027671,2]
[314467888,1708369849213,-500.0,0.00027671,2]
[314467889,1708369849222,-500.0,0.00027671,2]
[314467890,1708369849231,-500.0,0.00027671,2]
[314467891,1708369849241,-500.0,0.00027671,2]
[314467892,1708369849249,-865.08300148,0.00027671,2]
[314467893,1708369849258,-500.0,0.00027671,2]
[314467894,1708369849267,-500.0,0.00027671,2]
[314467895,1708369849277,-500.0,0.00027671,2]
[314467896,1708369849286,-500.0,0.00027671,2]
[314467897,1708369849294,-500.0,0.00027671,2]
[314467898,1708369849303,-500.0,0.00027671,2]
[314467899,1708369849312,-500.0,0.00027671,2]
[314467900,1708369849322,-1956.77,0.00027671,2]
[314467901,1708369849331,-500.0,0.00027671,2]
[314467902,1708369849342,-500.0,0.00027671,2]
[314467903,1708369849350,-500.0,0.00027671,2]
[314467904,1708369849359,-500.0,0.00027671,2]
[314467905,1708369849368,-500.0,0.00027671,2]
[314467906,1708369849378,-500.0,0.00027671,2]
[314467907,1708369849387,-500.0,0.00027671,2]
[314467908,1708369849396,-752.32,0.00027671,2]
[314467909,1708369849406,-500.0,0.00027671,2]
[314467910,1708369849418,-679.62,0.00027671,2]
[314467911,1708369849428,-285.93031824,0.00027671,2]
[314467912,1708369849437,-500.0,0.00027671,2]
[314467913,1708369849446,-500.0,0.00027671,2]
[314467914,1708369849454,-500.0,0.00027671,2]
[314467915,1708369849463,-646.29147145,0.00027671,2]
[314467916,1708369849472,-454.44949422,0.00027671,2]
[314467917,1708369849481,-500.0,0.00027671,2]
[314467918,1708369849496,-500.0,0.00027671,2]
[314467919,1708369849506,-500.0,0.00027671,2]
[314467920,1708369849516,-579.52193235,0.00027671,2]
[314467921,1708369849527,-805.44,0.00027671,2]
[314467922,1708369849536,-500.0,0.00027671,2]
[314467923,1708369849545,-500.0,0.00027671,2]
[314467924,1708369849553,-500.0,0.00027671,2]
[314467925,1708369849562,-500.0,0.00027671,2]
[314467926,1708369849571,-500.0,0.00027671,2]
[314467927,1708369849580,-500.0,0.00027671,2]
[314467928,1708369849589,-500.0,0.00027671,2]
[314467929,1708369849598,-740.68,0.00027671,2]
[314467930,1708369849607,-500.0,0.00027671,2]
[314467931,1708369849616,-500.0,0.00027671,2]
[314467932,1708369849625,-500.0,0.00027671,2]
[314467933,1708369849634,-500.0,0.00027671,2]
[314467934,1708369849642,-500.0,0.00027671,2]
[314467935,1708369849651,-500.0,0.00027671,2]
[314467936,1708369849660,-500.0,0.00027671,2]
[314467937,1708369849670,-579.60384803,0.00027671,2]
[314467938,1708369849678,-500.0,0.00027671,2]
[314467939,1708369849687,-500.0,0.00027671,2]
[314467940,1708369849696,-500.0,0.00027671,2]
[314467941,1708369849705,-500.0,0.00027671,2]
[314467942,1708369849716,-500.0,0.00027671,2]
[314467943,1708369849726,-500.0,0.00027671,2]
[314467944,1708369849735,-500.0,0.00027671,2]
[314467945,1708369849745,-1496.81,0.00027671,2]
[314467946,1708369849754,-500.0,0.00027671,2]
[314467947,1708369849762,-500.0,0.00027671,2]
[314467948,1708369849771,-992.07,0.00027671,2]
[314467949,1708369849780,-500.0,0.00027671,2]
[314467950,1708369849789,-944.14,0.00027671,2]
[314467951,1708369849798,-167.87359073,0.00027671,2]
[314467952,1708369849807,-500.0,0.00027671,2]
[314467953,1708369849817,-500.0,0.00027671,2]
[314467954,1708369849827,-574.06632174,0.00027671,2]
[314467955,1708369849847,-500.0,0.00027671,2]
[314467956,1708369849858,-500.0,0.00027671,2]
[314467957,1708369849867,-500.0,0.00027671,2]
[314467958,1708369849876,-500.0,0.00027671,2]
[314467959,1708369849886,-500.0,0.00027671,2]
[314467960,1708369849895,-570.23477413,0.00027671,2]
[314467961,1708369849905,-500.0,0.00027671,2]
[314467962,1708369849914,-4204.42,0.00027671,2]
[314467963,1708369849923,-500.0,0.00027671,2]
[314467964,1708369849932,-500.0,0.00027671,2]
[314467965,1708369849941,-500.0,0.00027671,2]
[314467966,1708369849950,-1959.33,0.00027671,2]
[314467968,1708369849959,-500.0,0.00027671,2]
[314467970,1708369849968,-500.0,0.00027671,2]
[314467972,1708369849977,-500.0,0.00027671,2]
[314467974,1708369849986,-500.0,0.00027671,2]
[314467975,1708369849997,-500.0,0.00027671,2]
[314467976,1708369850006,-500.0,0.00027671,2]
[314467978,1708369850015,-500.0,0.00027671,2]
[314467980,1708369850024,-500.0,0.00027671,2]
[314467982,1708369850033,-3786.6,0.00027671,2]
[314467984,1708369850042,-500.0,0.00027671,2]
[314467986,1708369850051,-500.0,0.00027671,2]
[314467988,1708369850060,-500.0,0.00027671,2]
[314467990,1708369850069,-500.0,0.00027671,2]
[314467992,1708369850078,-500.0,0.00027671,2]
[314467994,1708369850087,-500.0,0.00027671,15]
[314467996,1708369850097,-500.0,0.00027671,2]
[314467998,1708369850107,-500.0,0.00027671,2]
[314468000,1708369850116,-500.0,0.00027671,2]
[314468002,1708369850125,-750.74,0.00027671,2]
[314468005,1708369850135,-500.0,0.00027671,2]
[314468007,1708369850145,-500.0,0.00027671,2]
[314468009,1708369850155,-500.0,0.00027671,2]
[314468011,1708369850164,-500.0,0.00027671,2]
[314468013,1708369850174,-500.0,0.00027671,2]
[314468015,1708369850183,-500.0,0.00027671,2]
[314468016,1708369850193,-638.68663984,0.00027671,2]
[314468017,1708369850203,-500.0,0.00027671,2]
[314468018,1708369850212,-500.0,0.00027671,2]
[314468019,1708369850223,-500.0,0.00027671,2]
[314468020,1708369850233,-500.0,0.00027671,2]
[314468021,1708369850244,-500.0,0.00027671,2]
[314468022,1708369850254,-500.0,0.00027671,2]
[314468023,1708369850264,-500.0,0.00027671,2]
[314468024,1708369850274,-500.0,0.00027671,2]
[314468025,1708369850283,-500.0,0.00027671,2]
[314468026,1708369850293,-500.0,0.00027671,2]
[314468027,1708369850302,-500.0,0.00027671,2]
[314468028,1708369850313,-500.0,0.00027671,2]
[314468029,1708369850325,-500.0,0.00027671,2]
[314468030,1708369850335,-767.56,0.00027671,2]
[314468031,1708369850345,-500.0,0.00027671,2]
[314468032,1708369850355,-500.0,0.00027671,2]
[314468033,1708369850364,-500.0,0.00027671,2]
[314468034,1708369850376,-500.0,0.00027671,2]
[314468035,1708369850387,-500.0,0.00027671,2]
[314468036,1708369850396,-500.0,0.00027671,2]
[314468037,1708369850405,-500.0,0.00027671,2]
[314468038,1708369850416,-552.44,0.00027671,2]
[314468039,1708369850425,-500.0,0.00027671,2]
[314468040,1708369850434,-500.0,0.00027671,2]
[314468041,1708369850444,-1134.99,0.00027671,2]
[314468042,1708369850453,-500.0,0.00027671,2]
[314468043,1708369850463,-274.89925398,0.00027671,2]
[314468044,1708369850472,-598.11884579,0.00027671,2]
[314468045,1708369850482,-500.0,0.00027671,2]
[314468046,1708369850491,-500.0,0.00027671,2]
[314468047,1708369850502,-500.0,0.00027671,2]
[314468048,1708369850511,-3665.42,0.00027671,2]
[314468049,1708369850521,-500.0,0.00027671,2]
[314468050,1708369850531,-500.0,0.00027671,2]
[314468051,1708369850541,-500.0,0.00027671,2]
[314468052,1708369850550,-500.0,0.00027671,2]
[314468053,1708369850559,-500.0,0.00027671,2]
[314468054,1708369850569,-699.85,0.00027671,2]
[314468055,1708369850578,-534.2,0.00027671,2]
[314468056,1708369850588,-500.0,0.00027671,2]
[314468057,1708369850597,-500.0,0.00027671,2]
[314468058,1708369850607,-1698.91,0.00027671,2]
[314468059,1708369850616,-500.0,0.00027671,2]
[314468060,1708369850625,-500.0,0.00027671,2]
[314468061,1708369850635,-500.0,0.00027671,2]
[314468062,1708369850645,-378.68376373,0.00027671,2]
[314468063,1708369850654,-500.0,0.00027671,2]
[314468064,1708369850663,-500.0,0.00027671,2]
[314468065,1708369850672,-500.0,0.00027671,2]
[314468066,1708369850681,-500.0,0.00027671,2]
[314468067,1708369850690,-500.0,0.00027671,2]
[314468074,1708369850862,-4834.44,0.00027671,2]
[314468075,1708369850873,-500.0,0.00027671,2]
[314468076,1708369850883,-367.3523558,0.00027671,2]
[314468077,1708369850892,-500.0,0.00027671,2]
[314468078,1708369850903,-575.99,0.00027671,2]
[314468079,1708369850912,-500.0,0.00027671,2]
[314468080,1708369850921,-616.65,0.00027671,2]
[314468081,1708369850930,-2092.72,0.00027671,2]
[314468082,1708369850940,-1021.66650123,0.00027671,2]
[314468083,1708369850949,-500.0,0.00027671,2]
[314468084,1708369850957,-3615.9,0.00027671,2]
[314468085,1708369850970,-500.0,0.00027671,2]
[314468086,1708369850979,-500.0,0.00027671,2]
[314468087,1708369850988,-500.0,0.00027671,2]
[314468088,1708369851000,-500.0,0.00027671,2]
[314468089,1708369851009,-500.0,0.00027671,2]
[314468090,1708369851018,-500.0,0.00027671,2]
[314468091,1708369851028,-500.0,0.00027671,2]
[314468092,1708369851037,-500.0,0.00027671,2]
[314468093,1708369851046,-500.0,0.00027671,2]
[314468094,1708369851055,-1009.31,0.00027671,2]
[314468095,1708369851065,-3167.92,0.00027671,2]
[314468096,1708369851074,-500.0,0.00027671,2]
[314468097,1708369851083,-500.0,0.00027671,2]
[314468098,1708369851094,-500.0,0.00027671,2]
[314468100,1708369851103,-1573.88,0.00027671,2]
[314468102,1708369851113,-721.49,0.00027671,2]
[314468104,1708369851123,-500.0,0.00027671,2]
[314468107,1708369851133,-500.0,0.00027671,2]
[314468108,1708369851143,-2320.89,0.00027671,2]
[314468110,1708369851152,-507.63498782,0.00027671,2]
[314468112,1708369851161,-500.0,0.00027671,2]
[314468114,1708369851170,-500.0,0.00027671,2]
[314468116,1708369851180,-2820.64,0.00027671,2]
[314468118,1708369851189,-500.0,0.00027671,2]
[314468120,1708369851199,-500.0,0.00027671,2]
[314468122,1708369851208,-390.0,0.00027671,2]
[314468124,1708369851216,-267.69446387,0.00027671,2]
[314468126,1708369851225,-500.0,0.00027671,2]
[314468128,1708369851235,-500.0,0.00027671,2]
[314468130,1708369851245,-21952.34,0.00027671,2]
[314468132,1708369851254,-1132.78,0.00027671,2]
[314468134,1708369851263,-1000.0,0.00027671,2]
[314468136,1708369851272,-500.0,0.00027671,2]
[314468138,1708369851282,-500.0,0.00027671,2]
[314468140,1708369851291,-209.96479372,0.00027671,2]
[314468142,1708369851300,-500.0,0.00027671,2]
[314468144,1708369851309,-500.0,0.00027671,2]
[314468146,1708369851318,-19725.55,0.00027671,2]
[314468148,1708369851328,-10210.97,0.00027671,2]
[314468150,1708369851339,-4342.53,0.00027671,2]
[314468151,1708369851348,-500.0,0.00027671,2]
[314468153,1708369851357,-500.0,0.00027671,2]
[314468155,1708369851367,-500.0,0.00027671,2]
[314468157,1708369851377,-13932.42,0.00027671,2]
[314468158,1708369851387,-500.0,0.00027671,2]
[314468159,1708369851396,-14188.01,0.00027671,2]
[314468161,1708369851405,-500.0,0.00027671,2]
[314468162,1708369851415,-500.0,0.00027671,2]
[314468164,1708369851424,-509.53631045,0.00027671,2]
[314468166,1708369851435,-1193.94,0.00027671,2]
[314468168,1708369851444,-27851.97,0.00027671,2]
[314468169,1708369851452,-503.51122126,0.00027671,2]
[314468171,1708369851461,-500.0,0.00027671,2]
[314468172,1708369851470,-500.0,0.00027671,2]
[314468174,1708369851480,-500.0,0.00027671,2]
[314468176,1708369851489,-3894.85,0.00027671,2]
[314468177,1708369851498,-2998.23,0.00027671,2]
[314468178,1708369851507,-500.0,0.00027671,2]
[314468180,1708369851516,-152.01702042,0.00027671,2]
[314468182,1708369851525,-500.0,0.00027671,2]
[314468184,1708369851535,-3124.39,0.00027671,2]
[314468186,1708369851545,-500.0,0.00027671,2]
[314468188,1708369851554,-4091.4,0.00027671,2]
[314468190,1708369851563,-500.0,0.00027671,2]
[314468192,1708369851572,-500.0,0.00027671,2]
[314468194,1708369851582,-500.0,0.00027671,2]
[314468196,1708369851591,-2230.98,0.00027671,2]
[314468198,1708369851600,-500.0,0.00027671,2]
[314468200,1708369851608,-552.32740034,0.00027671,2]
[314468202,1708369851617,-500.0,0.00027671,2]
[314468204,1708369851625,-33082.17,0.00027671,2]
[314468206,1708369851634,-500.0,0.00027671,2]
[314468208,1708369851643,-739.94,0.00027671,2]
[314468210,1708369851652,-500.0,0.00027671,2]
[314468212,1708369851660,-500.0,0.00027671,2]
[314468213,1708369851669,-500.0,0.00027671,2]
[314468215,1708369851678,-500.0,0.00027671,2]
[314468217,1708369851688,-717.56,0.00027671,2]
[314468219,1708369851697,-500.0,0.00027671,2]
[314468221,1708369851707,-3139.07,0.00027671,2]
[314468223,1708369851716,-599.43,0.00027671,2]
[314468225,1708369851727,-500.0,0.00027671,2]
[314468227,1708369851738,-318.5976955,0.00027671,2]
[314468229,1708369851750,-714.23,0.00027671,2]
[314468231,1708369851759,-500.0,0.00027671,2]
[314468233,1708369851768,-500.0,0.00027671,2]
[314468235,1708369851777,-500.0,0.00027671,2]
[314468237,1708369851786,-1017.25,0.00027671,2]
[314468239,1708369851796,-500.0,0.00027671,2]
[314468242,1708369851806,-500.0,0.00027671,2]
[314468244,1708369851814,-500.0,0.00027671,2]
[314468246,1708369851825,-500.0,0.00027671,2]
[314468248,1708369851834,-1564.55,0.00027671,2]
[314468250,1708369851843,-500.0,0.00027671,2]
[314468251,1708369851852,-500.0,0.00027671,2]
[314468253,1708369851862,-500.0,0.00027671,2]
[314468255,1708369851871,-543.39380708,0.00027671,2]
[314468257,1708369851880,-500.0,0.00027671,2]
[314468259,1708369851889,-937.64,0.00027671,2]
[314468261,1708369851898,-500.0,0.00027671,2]
[314468263,1708369851906,-1224.59,0.00027671,2]
[314468265,1708369851915,-500.0,0.00027671,2]
[314468267,1708369851924,-6179.64,0.00027671,2]
[314468269,1708369851933,-570.0,0.00027671,2]
[314468271,1708369851942,-1093.55,0.00027671,2]
[314468273,1708369851951,-500.0,0.00027671,2]
[314468275,1708369851961,-500.0,0.00027671,2]
[314468277,1708369851970,-500.0,0.00027671,2]
[314468279,1708369851978,-518.91,0.00027671,2]
[314468281,1708369851987,-1915.56,0.00027671,2]
[314468283,1708369851999,-500.0,0.00027671,2]
[314468285,1708369852008,-500.0,0.00027671,2]
[314468287,1708369852017,-151.0,0.00027671,2]
[314468289,1708369852026,-2645.63,0.00027671,2]
[314468291,1708369852035,-300.0,0.00027719,2]
[314468293,1708369852044,-500.0,0.00027808,2]
[314468295,1708369852055,-2074.77564234,0.00027876,2]
[314468297,1708369852064,-300.0,0.0002788,2]
[314468299,1708369852073,-344.95318919,0.00027944,2]
[314468301,1708369852083,-500.0,0.00027944,2]
[314468303,1708369852092,-500.0,0.00027944,2]
[314468305,1708369852101,-289.24774469,0.00027944,2]
[314468307,1708369852110,-500.0,0.00027944,2]
[314468309,1708369852119,-500.0,0.00027944,2]
[314468311,1708369852128,-428.52767361,0.00027944,2]
[314468313,1708369852137,-500.0,0.00027944,2]
[314468315,1708369852146,-500.0,0.00027944,2]
[314468317,1708369852154,-500.0,0.00027944,2]
[314468319,1708369852163,-261.03755414,0.00027944,2]
[314468321,1708369852172,-500.0,0.00027944,2]
[314468323,1708369852182,-500.0,0.00027944,2]
[314468324,1708369852191,-500.0,0.00027944,2]
[314468325,1708369852201,-500.0,0.00027944,2]
[314468326,1708369852210,-500.0,0.00027944,2]
[314468327,1708369852219,-500.0,0.00027944,2]
[314468328,1708369852227,-500.0,0.00027944,2]
[314468329,1708369852236,-500.0,0.00027944,2]
[314468330,1708369852248,-500.0,0.00027944,2]
[314468331,1708369852257,-250.0,0.00027944,2]
[314468332,1708369852267,-500.0,0.00027945,2]
[314468333,1708369852276,-500.0,0.00027945,2]
[314468334,1708369852285,-500.0,0.00027945,2]
[314468335,1708369852295,-502.00295055,0.00027945,2]
[314468336,1708369852304,-500.0,0.00027945,2]
[314468337,1708369852314,-500.0,0.00027945,2]
[314468338,1708369852327,-500.0,0.00027945,2]
[314468339,1708369852337,-500.0,0.00027945,2]
[314468340,1708369852346,-709.51,0.00027945,2]
[314468341,1708369852355,-853.57,0.00027945,2]
[314468342,1708369852365,-500.0,0.00027945,2]
[314468343,1708369852374,-1380.55,0.00027945,2]
[314468344,1708369852383,-496.61633453,0.00027945,2]
[314468345,1708369852392,-500.0,0.00027945,2]
[314468346,1708369852402,-500.0,0.00027945,2]
[314468347,1708369852411,-500.0,0.00027945,2]
[314468348,1708369852420,-500.0,0.00027945,2]
[314468349,1708369852429,-500.0,0.00027945,2]
[314468350,1708369852439,-500.0,0.00027945,2]